fUST/lending_fUST_20260419
["ID","MTS","AMOUNT","RATE_DAILY","PERIOD"]
[420832935,1776605438976,-300.0,6.856e-05,2]
[420832936,1776605438986,-300.0,6.856e-05,2]
[420832937,1776605438995,-300.0,6.856e-05,2]
[420832938,1776605439005,-300.0,6.856e-05,2]
[420832939,1776605439015,-300.0,6.856e-05,2]
[420832940,1776605439024,-600.0,6.992e-05,2]
[420832941,1776605439035,-163.414563,7.213e-05,2]
[420832942,1776605439044,-1680.0,7.394e-05,2]
[420832943,1776605439054,-720.0,7.691e-05,2]
[420832944,1776605439063,-2351.0,8.134e-05,2]
[420832945,1776605439072,-864.0,8.46e-05,2]
[420832946,1776605439082,-177.0,8.689e-05,2]
[420832947,1776605439091,-1680.0,8.947e-05,2]
[420832948,1776605439101,-1000.0,9.306e-05,2]
[420832949,1776605439110,-1000.0,0.00010237,2]
[420832950,1776605439119,-244.0,0.00010237,2]
[420832951,1776605439128,-150.0,0.0001096,2]
[420832952,1776605439137,-238.67,0.0001096,2]
[420832953,1776605439147,-150.0,0.0001126,2]
[420832954,1776605439156,-208.01,0.0001126,2]
[420832955,1776605439165,-1000.0,0.00011261,2]
[420832956,1776605439174,-492.0,0.00011261,2]
[420832957,1776605439184,-177.35,0.0001156,2]
[420832958,1776605439193,-2302.28405013,0.00011668,2]
[420832959,1776605439203,-6800.73684928,0.00011668,2]
[420832960,1776605439212,-7489.342826,0.00012029,2]
[420832961,1776605439221,-199.689414,0.00012282,2]
[420832962,1776605439230,-199.689414,0.00012282,2]
[420832963,1776605439239,-199.689414,0.00012282,2]
[420832964,1776605439248,-199.689414,0.00012282,2]
[420832965,1776605439257,-671.28538311,0.00012282,2]
[420832966,1776605439266,-1000.0,0.00012387,2]
[420832967,1776605439275,-791.0,0.00012387,2]
[420832968,1776605439284,-563.58440702,0.00012448,2]
[420832969,1776605439294,-7546.6897908,0.00012449,2]
[420832970,1776605439303,-358.0160056,0.00012449,2]
[420832971,1776605439312,-211.6323795,0.00012449,2]
[420832972,1776605439515,-199.689414,0.00012449,2]
[420832973,1776605439525,-199.689414,0.00012449,2]
[420832974,1776605439535,-1995.5872225,0.00012449,2]
[420832975,1776605439544,-199.689414,0.00012449,2]
[420832976,1776605439553,-199.689414,0.00012449,2]
[420832977,1776605439563,-500.0,0.00012449,2]
[420832978,1776605439572,-1901.0,0.000125,2]
[420832979,1776605439581,-500.0,0.00012723,2]
[420832980,1776605439591,-1316.32152526,0.000129,2]
[420832981,1776605439600,-1316.32152525,0.000129,2]
[420832982,1776605439609,-1316.32152525,0.000129,2]
[420832983,1776605439619,-183.52401,0.0001298,2]
[420832984,1776605439628,-511.58478604,0.00013608,2]
[420832985,1776605439638,-1000.0,0.00013626,2]
[420832986,1776605439648,-1000.0,0.00013626,2]
[420832987,1776605439657,-151.0,0.00013693,2]
[420832988,1776605439667,-151.0,0.00013693,2]
[420832989,1776605439676,-151.0,0.00013693,2]
[420832990,1776605439686,-151.0,0.00013693,2]
[420832991,1776605439696,-500.0,0.00013698,2]
[420832992,1776605439705,-500.0,0.00013698,2]
[420832993,1776605439714,-151.0,0.00013699,2]
[420832994,1776605439723,-151.0,0.00013699,2]
[420832995,1776605439732,-166.519335,0.00013699,2]
[420832996,1776605439742,-166.519335,0.00013699,2]
[420832997,1776605439751,-166.519335,0.00013699,2]
[420832998,1776605439760,-166.519335,0.00013699,2]
[420832999,1776605439769,-166.519335,0.00013699,2]
[420833000,1776605439781,-166.519335,0.00013699,2]
[420833001,1776605439790,-166.519335,0.00013699,2]
[420833002,1776605439800,-166.519335,0.00013699,2]
[420833003,1776605439809,-151.0,0.00013699,2]
[420833004,1776605439819,-151.0,0.00013699,2]
[420833005,1776605439828,-415.417854,0.00013699,2]
[420833006,1776605439838,-151.0,0.00013699,2]
[420833007,1776605439847,-151.0,0.00013699,2]
[420833008,1776605439856,-151.0,0.00013699,2]
[420833009,1776605439866,-151.0,0.00013699,2]
[420833010,1776605439876,-151.0,0.00013699,2]
[420833011,1776605439886,-259.0,0.00013699,2]
[420833012,1776605439896,-151.0,0.00013699,2]
[420833013,1776605439905,-151.0,0.00013699,2]
[420833014,1776605439914,-151.0,0.00013699,2]
[420833015,1776605439923,-151.0,0.00013699,2]
[420833016,1776605439933,-151.0,0.00013699,2]
[420833017,1776605439942,-279.755628,0.00013699,2]
[420833018,1776605439952,-151.0,0.00013699,2]
[420833019,1776605439961,-151.0,0.00013699,2]
[420833020,1776605439970,-151.0,0.00013699,2]
[420833021,1776605439979,-151.0,0.00013699,2]
[420833022,1776605439989,-151.0,0.00013699,2]
[420833023,1776605439998,-151.0,0.00013699,2]
[420833024,1776605440008,-1000.0,0.00013699,2]
[420833025,1776605440017,-155.0,0.000137,2]
[420833026,1776605440026,-211.6323795,0.00013702,2]
[420833027,1776605440036,-183.52401,0.0001389,2]
[420833028,1776605440045,-199.689414,0.00013982,2]
[420833029,1776605440054,-199.689414,0.00013982,2]
[420833030,1776605440064,-199.689414,0.00013982,2]
[420833031,1776605440073,-199.689414,0.00013982,2]
[420833032,1776605440083,-151.0,0.00013982,2]
[420833033,1776605440092,-151.0,0.00013982,2]
[420833034,1776605440101,-537.6845,0.00013982,2]
[420833035,1776605440111,-557.5788265,0.00013982,2]
[420833036,1776605440120,-2150.738,0.00013982,2]
[420833037,1776605440130,-557.5788265,0.00014037,2]
[420833038,1776605440139,-578.20924308,0.00014092,2]
[420833039,1776605440148,-155.0,0.000141,2]
[420833040,1776605440157,-500.0,0.00014105,2]
[420833041,1776605440167,-151.0,0.00014105,2]
[420833042,1776605440176,-151.0,0.00014105,2]
[420833043,1776605440186,-151.0,0.00014105,2]
[420833044,1776605440195,-151.0,0.00014106,2]
[420833045,1776605440205,-151.0,0.00014106,2]
[420833046,1776605440214,-151.0,0.00014106,2]
[420833047,1776605440224,-151.0,0.00014106,2]
[420833048,1776605440233,-151.0,0.00014106,2]
[420833049,1776605440242,-151.0,0.00014106,2]
[420833050,1776605440251,-166.519335,0.00014106,2]
[420833051,1776605440260,-166.519335,0.00014106,2]
[420833052,1776605440270,-166.519335,0.00014106,2]
[420833053,1776605440279,-166.519335,0.00014106,2]
[420833054,1776605440288,-7546.6897908,0.00014106,2]
[420833055,1776605440298,-599.60298507,0.00014147,2]
[420833056,1776605440308,-155.0,0.000142,2]
[420833057,1776605440317,-155.0,0.000142,2]
[420833058,1776605440326,-155.0,0.000142,3]
[420833059,1776605440335,-151.0,0.000142,2]
[420833060,1776605440345,-151.0,0.000142,2]
[420833061,1776605440355,-621.78829552,0.00014202,2]
[420833062,1776605440364,-199.689414,0.00014257,2]
[420833063,1776605440374,-199.689414,0.00014257,2]
[420833064,1776605440384,-199.689414,0.00014257,2]
[420833065,1776605440393,-199.689414,0.00014257,2]
[420833066,1776605440403,-644.79446246,0.00014257,2]
[420833067,1776605440412,-151.0,0.00014312,2]
[420833068,1776605440421,-151.0,0.00014312,2]
[420833069,1776605440431,-163.786505,0.00014312,2]
[420833070,1776605440440,-668.65185757,0.00014312,2]
[420833071,1776605440449,-151.0,0.00014317,2]
[420833072,1776605440458,-151.0,0.00014317,2]
[420833073,1776605440467,-151.0,0.00014317,2]
[420833074,1776605440477,-693.3919763,0.00014367,2]
[420833075,1776605440486,-719.04747942,0.00014422,2]
[420833076,1776605440495,-219.6993025,0.00014426,2]
[420833077,1776605440504,-745.65223616,0.00014477,2]
[420833078,1776605440514,-358.0160056,0.00014494,2]
[420833079,1776605440524,-151.0,0.00014495,2]
[420833080,1776605440533,-2230.315306,0.0001453,2]
[420833081,1776605440542,-773.2413689,0.00014532,2]
[420833082,1776605440552,-801.85129955,0.00014587,2]
[420833083,1776605440561,-831.51979763,0.00014642,2]
[420833084,1776605440571,-500.0,0.00014648,2]
[420833085,1776605440581,-415.417854,0.00014658,2]
[420833086,1776605440590,-500.0,0.00014696,2]
[420833087,1776605440599,-151.0,0.00014697,2]
[420833088,1776605440610,-151.0,0.00014697,2]
[420833089,1776605440619,-151.0,0.00014697,2]
[420833090,1776605440628,-250.78233,0.00014697,2]
[420833091,1776605440638,-151.0,0.00014697,2]
[420833092,1776605440647,-163.173112,0.00014697,2]
[420833093,1776605440657,-166.519335,0.00014697,2]
[420833094,1776605440666,-166.519335,0.00014697,2]
[420833095,1776605440676,-166.519335,0.00014697,2]
[420833096,1776605440687,-166.519335,0.00014697,2]
[420833097,1776605440696,-862.28603014,0.00014697,2]
[420833098,1776605440705,-199.689414,0.00014752,2]
[420833099,1776605440715,-199.689414,0.00014752,2]
[420833100,1776605440724,-199.689414,0.00014752,2]
[420833101,1776605440734,-199.68941212,0.00014752,2]
[420833102,1776605440743,-894.19061326,0.00014752,2]
[420833103,1776605440752,-183.52401,0.00014801,2]
[420833104,1776605440762,-151.0,0.00014801,2]
[420833105,1776605440771,-151.0,0.00014801,2]
[420833106,1776605440780,-211.6323795,0.00014955,2]
[420833107,1776605440790,-1000.0,0.00014988,2]
[420833108,1776605440799,-1000.0,0.00014988,2]
[420833109,1776605440808,-439.0,0.00014988,2]
[420833110,1776605440818,-2312.83697232,0.00015078,2]
[420833111,1776605440828,-1316.32152525,0.00015115,2]
[420833112,1776605440837,-500.0,0.00015133,2]
[420833113,1776605440847,-500.0,0.00015133,2]
[420833114,1776605440856,-180.01452386,0.00015165,2]
[420833115,1776605440865,-155.0,0.000155,3]
[420833116,1776605440875,-155.0,0.000155,2]
[420833117,1776605440884,-160.0,0.00015556,7]
[420833118,1776605440893,-4430.089553,0.00015556,7]
[420833119,1776605440903,-8700.179107,0.00015556,7]
[420833120,1776605440912,-281.5921869,0.00015663,2]
[420833121,1776605440922,-500.0,0.00015681,2]
[420833122,1776605440932,-183.52401,0.00015711,2]
[420833123,1776605440940,-151.119639,0.00015747,2]
[420833124,1776605440949,-151.0,0.00015747,2]
[420833125,1776605440958,-151.0,0.00015747,2]
[420833126,1776605440968,-151.0,0.00015747,2]
[420833127,1776605440978,-151.0,0.00015747,2]
[420833128,1776605440987,-166.519335,0.00015747,2]
[420833129,1776605440996,-166.519335,0.00015747,2]
[420833130,1776605441006,-166.519335,0.00015747,2]
[420833131,1776605441015,-166.519343,0.00015747,2]
[420833132,1776605441025,-500.0,0.00015747,2]
[420833133,1776605441035,-500.0,0.00015747,2]
[420833134,1776605441044,-500.0,0.00015747,2]
[420833135,1776605441054,-500.0,0.00015747,2]
[420833136,1776605441063,-500.0,0.00015747,2]
[420833137,1776605441072,-500.0,0.00015747,2]
[420833138,1776605441081,-500.0,0.00015747,2]
[420833139,1776605441090,-328.50379861,0.00015747,2]
[420833140,1776605441100,-151.0,0.00015748,2]
[420833141,1776605441109,-151.0,0.00015748,2]
[420833142,1776605441118,-259.0,0.00015748,2]
[420833143,1776605441127,-151.0,0.00015748,2]
[420833144,1776605441136,-151.0,0.00015748,2]
[420833145,1776605441145,-151.0,0.00015748,2]
[420833146,1776605441154,-151.0,0.00015748,2]
[420833147,1776605441164,-7546.6897908,0.00015763,2]
[420833148,1776605441173,-500.0,0.00015773,2]
[420833149,1776605441182,-500.0,0.00015773,2]
[420833150,1776605441192,-500.0,0.00015773,2]
[420833151,1776605441202,-500.0,0.00015773,2]
[420833152,1776605441212,-500.0,0.00015773,2]
[420833153,1776605441221,-501.60568996,0.00015773,2]
[420833154,1776605441230,-244.23179097,0.00015847,2]
[420833155,1776605441240,-166.0,0.00015848,2]
[420833156,1776605441249,-155.0,0.00015848,2]
[420833157,1776605441258,-166.0,0.00015848,2]
[420833158,1776605441267,-155.0,0.00015848,2]
[420833159,1776605441276,-648.0,0.00015848,2]
[420833160,1776605441285,-264.31968197,0.00015848,2]
[420833161,1776605441294,-648.0,0.00015848,2]
[420833162,1776605441303,-648.0,0.00015848,2]
[420833163,1776605441312,-340.0,0.00015848,2]
[420833164,1776605441322,-648.0,0.00015848,2]
[420833165,1776605441331,-648.0,0.00015848,2]
[420833166,1776605441340,-648.0,0.00015848,2]
[420833167,1776605441349,-648.0,0.00015848,2]
[420833168,1776605441358,-648.0,0.00015848,2]
[420833169,1776605441367,-179.0,0.00015848,2]
[420833170,1776605441376,-648.0,0.00015848,2]
[420833171,1776605441386,-180.60411744,0.00015848,2]
[420833172,1776605441395,-648.0,0.00015848,2]
[420833173,1776605441404,-179.0,0.00015848,2]
[420833174,1776605441413,-648.0,0.00015848,2]
[420833175,1776605441422,-648.0,0.00015848,2]
[420833176,1776605441431,-300.93742755,0.00015848,2]
[420833177,1776605441441,-648.0,0.00015848,2]
[420833178,1776605441450,-648.0,0.00015848,2]
[420833179,1776605441459,-648.0,0.00015848,2]
[420833180,1776605441468,-648.0,0.00015848,2]
[420833181,1776605441478,-648.0,0.00015848,2]
[420833182,1776605441487,-648.0,0.00015848,2]
[420833183,1776605441496,-648.0,0.00015848,2]
[420833184,1776605441506,-648.0,0.00015848,2]
[420833185,1776605441515,-648.0,0.00015848,2]
[420833186,1776605441524,-648.0,0.00015848,2]
[420833187,1776605441533,-648.0,0.00015848,2]
[420833188,1776605441542,-648.0,0.00015848,2]
[420833189,1776605441551,-648.0,0.00015848,2]
[420833190,1776605441561,-648.0,0.00015848,2]
[420833191,1776605441571,-648.0,0.00015848,2]
[420833192,1776605441580,-648.0,0.00015848,2]
[420833193,1776605441589,-648.0,0.00015848,2]
[420833194,1776605441598,-648.0,0.00015848,2]
[420833195,1776605441607,-212.78794441,0.00015848,2]
[420833196,1776605441616,-151.0,0.00015848,2]
[420833197,1776605441627,-151.0,0.00015848,2]
[420833198,1776605441636,-151.0,0.00015848,2]
[420833199,1776605441646,-151.0,0.00015848,2]
[420833200,1776605441655,-151.0,0.00015848,2]
[420833201,1776605441664,-151.0,0.00015848,2]
[420833202,1776605441674,-155.0,0.00015848,2]
[420833203,1776605441684,-155.0,0.00015848,2]
[420833204,1776605441693,-155.0,0.00015848,2]
[420833205,1776605441703,-155.0,0.00015848,2]
[420833206,1776605441712,-7855.48762471,0.00015848,2]
[420833207,1776605441721,-537.02830649,0.00015873,2]
[420833208,1776605441730,-2145.96511273,0.00015873,2]
[420833209,1776605441739,-150.0,0.00016137,2]
[420833210,1776605441748,-155.33006088,0.00016179,2]
[420833211,1776605441758,-211.6323795,0.00016208,2]
[420833212,1776605441767,-233.06051969,0.00016321,2]
[420833213,1776605441776,-1000.0,0.00016321,2]
[420833214,1776605441786,-314.52362908,0.00016321,2]
[420833215,1776605441795,-983.55420187,0.00016321,2]
[420833216,1776605441804,-1000.0,0.00016321,2]
[420833217,1776605441813,-6041.031209,0.00016333,7]
[420833218,1776605441824,-325.2970195,0.00016356,2]
[420833219,1776605441834,-455.4525796,0.00016374,2]
[420833220,1776605441843,-151.0,0.00016374,2]
[420833221,1776605441852,-325.2970195,0.00016374,2]
[420833222,1776605441862,-260.0,0.00016438,2]
[420833223,1776605441871,-151.0,0.00016438,2]
[420833224,1776605441881,-151.0,0.00016438,2]
[420833225,1776605441890,-151.0,0.00016438,2]
[420833226,1776605441899,-151.0,0.00016438,2]
[420833227,1776605441909,-247.219001,0.00016438,2]
[420833228,1776605441918,-230.96,0.00016438,2]
[420833229,1776605441927,-358.0160056,0.0001654,2]
[420833230,1776605441938,-260.0,0.00016603,2]
[420833231,1776605441947,-1500.0,0.00016868,2]
[420833232,1776605441956,-1500.0,0.00016868,2]
[420833233,1776605441965,-151.0,0.00017199,2]
[420833234,1776605441975,-210.775,0.00017287,2]
[420833235,1776605441984,-232.597,0.00017287,2]
[420833236,1776605441993,-441.214,0.00017298,2]
[420833237,1776605442003,-187.0,0.00017298,2]
[420833238,1776605442012,-2000.0,0.00017416,2]
[420833239,1776605442021,-7546.6897908,0.0001742,2]
[420833240,1776605442030,-487.0,0.0001742,2]
[420833241,1776605442040,-487.0,0.0001742,2]
[420833242,1776605442048,-487.0,0.0001742,2]
[420833243,1776605442058,-487.0,0.0001742,2]
[420833244,1776605442067,-487.0,0.0001742,2]
[420833245,1776605442077,-785.01,0.0001742,2]
[420833246,1776605442086,-150.0,0.00017428,2]
[420833247,1776605442096,-1316.32152525,0.00017476,2]
[420833248,1776605442105,-2094.224152,0.00017889,7]
[420833249,1776605442114,-2000.0,0.00017964,2]
[420833250,1776605442123,-1181.86,0.00018,2]
[420833251,1776605442132,-151.0,0.00018021,2]
[420833252,1776605442141,-454.0440353,0.00018021,2]
[420833253,1776605442150,-358.0160056,0.00018585,2]
[420833254,1776605442159,-171.01062976,0.00018788,2]
[420833255,1776605442169,-166.27,0.000188,2]
[420833256,1776605442178,-260.5216,0.00018822,2]
[420833257,1776605442188,-151.0,0.00018843,2]
[420833258,1776605442197,-241.328538,0.00018843,2]
[420833259,1776605442206,-298.987,0.000189,2]
[420833260,1776605442216,-156.64820096,0.000191,4]
[420833261,1776605442225,-151.5,0.00019125,2]
[420833262,1776605442235,-151.5,0.00019125,2]
[420833263,1776605442244,-198.62,0.00019125,2]
[420833264,1776605442253,-151.5,0.00019125,30]
[420833265,1776605442262,-151.5,0.00019125,30]
[420833267,1776605442271,-151.5,0.00019125,30]
[420833269,1776605442280,-151.5,0.00019125,30]
[420833271,1776605442289,-151.5,0.00019125,30]
[420833273,1776605442298,-237.45513292,0.00019125,30]
[420833275,1776605442307,-200.0,0.00019178,2]
[420833277,1776605442316,-1190.0,0.00019178,2]
[420833279,1776605442325,-2000.0,0.00019306,7]
[420833281,1776605442334,-490.97521679,0.00019392,2]
[420833283,1776605442344,-500.0,0.00019414,2]
[420833285,1776605442353,-1190.0,0.00019452,2]
[420833287,1776605442362,-3462.890331,0.00019495,7]
[420833289,1776605442371,-800.0,0.00019581,2]
[420833291,1776605442380,-800.0,0.00019586,2]
[420833292,1776605442390,-200.0,0.00019589,3]
[420833295,1776605442399,-642.5556891,0.00019597,2]
[420833296,1776605442409,-129355.71760585,0.000196,4]
[420833313,1776605442556,-384.033501,7.141e-05,2]
[420833504,1776605446646,-424.01993096,7.141e-05,2]
[420833505,1776605446656,-224.523598,0.00013699,2]
[420833506,1776605446666,-224.523598,0.00013699,2]
[420833507,1776605446675,-224.523598,0.00013699,2]
[420833508,1776605446686,-224.523598,0.00013699,2]
[420833509,1776605446695,-224.523598,0.00013699,2]
[420833510,1776605446704,-224.523598,0.00013699,2]
[420833511,1776605446714,-224.523598,0.00014105,2]
[420833512,1776605446723,-224.523598,0.00014105,2]
[420833513,1776605446732,-224.523598,0.00014312,2]
[420833514,1776605446741,-224.523598,0.00014312,2]
[420833515,1776605446750,-151.0,0.00017199,2]
[420833516,1776605446759,-327.31681119,0.00019392,2]
[420833517,1776605446768,-45149.30049486,0.000196,4]
[420833518,1776605446790,-2049.15,0.000196,4]
[420833519,1776605446801,-96870.01707241,0.000196,4]
[420833520,1776605446812,-465195.73644495,0.000196,4]
[420833521,1776605446823,-892.736402,0.00019633,7]
[420833522,1776605446832,-325.2695586,0.00019665,2]
[420833523,1776605446841,-1190.0,0.00019726,2]
[420833524,1776605446851,-7533.82208075,0.00019727,2]
[420833525,1776605446860,-271.32529809,0.00019788,2]
[420833526,1776605446869,-500.0,0.00019788,2]
[420833527,1776605446879,-200.0,0.00019803,120]
[420833528,1776605446888,-218.0,0.0001981,2]
[420833529,1776605446898,-1316.32152525,0.00019836,2]
[420833530,1776605446908,-271.20139861,0.00019853,2]
[420833531,1776605446917,-200.0,0.00019889,120]
[420833532,1776605446926,-1751.7,0.000199,2]
[420833533,1776605446936,-2000.0,0.00019935,7]
[420833534,1776605446946,-200.0,0.00019945,120]
[420833535,1776605446955,-200.0,0.00019958,120]
[420833536,1776605446964,-500.0,0.00019962,2]
[420833537,1776605446974,-500.0,0.00019973,2]
[420833538,1776605446983,-500.0,0.00019973,2]
[420833539,1776605446992,-150.0,0.00019973,2]
[420833540,1776605447001,-500.0,0.00019973,2]
[420833541,1776605447011,-500.0,0.00019973,2]
[420833542,1776605447020,-500.0,0.00019973,2]
[420833543,1776605447030,-500.0,0.00019973,2]
[420833544,1776605447040,-500.0,0.00019973,2]
[420833545,1776605447051,-500.0,0.00019973,2]
[420833546,1776605447061,-244.39232996,0.00019973,2]
[420833547,1776605447070,-462.07690697,0.00019973,2]
[420833548,1776605447080,-500.0,0.00019973,2]
[420833549,1776605447089,-500.0,0.00019973,2]
[420833550,1776605447098,-500.0,0.00019973,2]
[420833551,1776605447107,-500.0,0.00019973,2]
[420833552,1776605447116,-500.0,0.00019973,2]
[420833553,1776605447126,-500.0,0.00019973,2]
[420833554,1776605447135,-150.0,0.00019973,2]
[420833555,1776605447144,-218.20664831,0.00019973,2]
[420833556,1776605447153,-500.0,0.00019973,2]
[420833557,1776605447162,-500.0,0.00019973,2]
[420833558,1776605447172,-500.0,0.00019973,2]
[420833559,1776605447181,-500.0,0.00019973,2]
[420833560,1776605447190,-500.0,0.00019973,2]
[420833561,1776605447200,-500.0,0.00019973,2]
[420833562,1776605447209,-500.0,0.00019973,2]
[420833563,1776605447218,-500.0,0.00019973,2]
[420833564,1776605447227,-500.0,0.00019973,2]
[420833565,1776605447236,-500.0,0.00019973,2]
[420833566,1776605447245,-500.0,0.00019973,2]
[420833567,1776605447253,-500.0,0.00019973,2]
[420833568,1776605447263,-500.0,0.00019973,2]
[420833569,1776605447272,-150.0,0.00019973,2]
[420833570,1776605447281,-500.0,0.00019973,2]
[420833571,1776605447290,-500.0,0.00019973,2]
[420833572,1776605447299,-500.0,0.00019973,2]
[420833573,1776605447308,-500.0,0.00019973,2]
[420833574,1776605447317,-500.0,0.00019973,2]
[420833575,1776605447327,-500.0,0.00019973,2]
[420833576,1776605447336,-500.0,0.00019973,2]
[420833577,1776605447346,-500.0,0.00019973,2]
[420833578,1776605447354,-500.0,0.00019973,2]
[420833579,1776605447363,-500.0,0.00019973,2]
[420833580,1776605447373,-500.0,0.00019973,2]
[420833581,1776605447382,-500.0,0.00019973,2]
[420833582,1776605447392,-449.79482176,0.00019973,2]
[420833583,1776605447402,-500.0,0.00019973,2]
[420833584,1776605447412,-151.0,0.00019973,2]
[420833585,1776605447421,-24892.38939999,0.0001999,2]
[420833913,1776606638562,-433.45811007,9.471e-05,2]
[420833914,1776606638614,-1557.84654226,9.471e-05,2]
[420833915,1776606638624,-3680.06154082,9.567e-05,2]
[420833916,1776606638832,-1319.93845918,9.567e-05,2]
[420833917,1776606638842,-500.0,9.664e-05,2]
[420833918,1776606638851,-150.0,9.863e-05,2]
[420833919,1776606638860,-207.20765187,0.00011863,2]
[420833920,1776606638870,-1200.0,0.00013698,2]
[420833921,1776606638879,-1000.0,0.00013699,2]
[420833922,1776606638889,-1000.0,0.00013699,2]
[420833923,1776606638898,-300.0,0.00015093,2]
[420833924,1776606638908,-141.1660391,0.00015094,2]
[420833925,1776606638938,-4475.3277166,0.00015094,2]
[420833926,1776606638947,-537.6845,0.00015773,2]
[420833927,1776606638957,-158.37096966,0.00015773,2]
[420833928,1776606638966,-12566.0088524,0.00015782,2]
[420833929,1776606638975,-437.05285282,0.00015828,2]
[420833930,1776606638985,-757.2501832,0.00016306,2]
[420833931,1776606638995,-329.08038133,0.00016338,2]
[420833932,1776606639004,-184.77,0.00016438,2]
[420833933,1776606639014,-329.08038131,0.00017512,2]
[420833934,1776606639023,-2208.0,0.00017602,2]
[420833935,1776606639032,-329.08038131,0.00018686,2]
[420833936,1776606639041,-200.68,0.000191,2]
[420833937,1776606639051,-218.21120746,0.0001959,2]
[420833938,1776606639061,-239.19,0.0001959,2]
[420833939,1776606639071,-455.4466984,0.00019788,2]
[420833940,1776606639079,-454.87046,0.00019788,2]
[420833941,1776606639088,-151.0,0.00019788,2]
[420833942,1776606639098,-151.0,0.00019788,2]
[420833943,1776606639107,-500.0,0.00019789,2]
[420833944,1776606639116,-500.0,0.00019789,2]
[420833945,1776606639126,-286.1457143,0.00019789,2]
[420833946,1776606639136,-500.0,0.00019789,2]
[420833947,1776606639145,-500.0,0.00019789,2]
[420833948,1776606639155,-170.96225368,0.00019789,2]
[420833949,1776606639164,-500.0,0.00019789,2]
[420833950,1776606639174,-500.0,0.00019789,2]
[420833951,1776606639183,-500.0,0.00019789,2]
[420833953,1776606639192,-500.0,0.00019789,2]
[420833954,1776606639202,-500.0,0.00019789,2]
[420833956,1776606639212,-500.0,0.00019789,2]
[420833957,1776606639221,-500.0,0.00019789,2]
[420833958,1776606639230,-500.0,0.00019789,2]
[420833959,1776606639239,-500.0,0.00019789,2]
[420833960,1776606639249,-500.0,0.00019789,2]
[420833961,1776606639258,-500.0,0.00019789,2]
[420833962,1776606639267,-500.0,0.00019789,2]
[420833963,1776606639277,-500.0,0.00019789,2]
[420833964,1776606639287,-581.52548091,0.00019789,2]
[420833966,1776606639296,-500.0,0.00019789,2]
[420833968,1776606639305,-500.0,0.00019789,2]
[420833970,1776606639314,-500.0,0.00019789,2]
[420833972,1776606639324,-500.0,0.00019789,2]
[420833974,1776606639334,-500.0,0.00019789,2]
[420833976,1776606639343,-500.0,0.00019789,2]
[420833978,1776606639352,-500.0,0.00019789,2]
[420833980,1776606639362,-500.0,0.00019789,2]
[420833982,1776606639371,-500.0,0.00019789,2]
[420833984,1776606639381,-500.0,0.00019789,2]
[420833986,1776606639390,-500.0,0.00019789,2]
[420833988,1776606639399,-500.0,0.00019789,2]
[420833990,1776606639409,-500.0,0.00019789,2]
[420833992,1776606639418,-402.4452044,0.00019789,2]
[420833994,1776606639427,-500.0,0.00019789,2]
[420833996,1776606639437,-224588.10278224,0.0001979,2]
[420833998,1776606639446,-482397.29832195,0.0001979,2]
[420834000,1776606639455,-200.0,0.00019809,2]
[420834002,1776606639464,-220.0,0.0001981,2]
[420834004,1776606639473,-200.0,0.00019825,120]